bitfinex-derivatives/quotes_BNBF0:USTF0_20250603
["timestamp","ask_amount","ask_price","bid_price","bid_amount"]
[1748962316904,0.781,668.6,667.32,1.04994747]
[1748962317105,0.781,668.6,667.33,1.04994747]
[1748962317308,0.781,668.6,667.34,1.04994747]
[1748962317510,0.781,668.6,667.3,0.29971527]
[1748962317712,0.781,668.6,667.31,1.04995091]
[1748962317907,0.781,668.6,667.32,1.04995091]
[1748962318104,0.781,668.6,667.33,1.04995091]
[1748962318308,0.781,668.6,667.34,1.04995091]
[1748962318505,0.781,668.6,667.3,0.29971527]
[1748962318705,0.781,668.6,667.31,1.04997901]
[1748962318909,0.781,668.6,667.32,1.04997901]
[1748962319105,0.781,668.6,667.33,1.04997901]
[1748962319305,0.781,668.6,667.34,1.04997901]
[1748962319505,0.781,668.6,667.35,1.04997901]
[1748962319704,0.781,668.6,667.3,0.29971527]
[1748962319904,0.781,668.6,667.31,1.05014919]
[1748962320109,0.781,668.6,667.32,1.05014919]
[1748962320307,0.781,668.6,667.3,0.29971527]
[1748962320508,0.781,668.6,667.31,1.05017662]
[1748962320810,0.781,668.6,667.32,1.05017662]
[1748962321010,0.781,668.6,667.3,0.29971527]
[1748962321011,0.781,668.6,667.33,1.05017662]
[1748962321210,0.781,668.6,667.3,0.29971527]
[1748962321211,0.781,668.6,667.34,1.05017662]
[1748962321411,0.781,668.6,667.35,1.05017662]
[1748962321606,0.781,668.6,667.3,0.29971527]
[1748962321806,0.781,668.6,667.31,1.05061915]
[1748962322008,0.781,668.6,667.32,1.05061915]
[1748962322307,0.781,668.6,667.33,1.05061915]
[1748962322504,0.781,668.6,667.34,1.05061915]
[1748962322708,0.781,668.6,667.3,0.29971527]
[1748962322906,0.781,668.6,667.31,1.05062396]
[1748962323106,0.781,668.6,667.3,0.29971527]
[1748962323309,0.781,668.6,667.31,1.04898078]
[1748962323613,0.781,668.6,667.3,0.29971527]
[1748962324514,0.781,668.6,667.31,1.04895483]
[1748962324714,0.781,668.6,667.3,0.29971527]
[1748962325013,0.781,668.6,667.31,1.04893002]
[1748962325213,0.781,668.6,667.3,0.29971527]
[1748962325911,3.72069198,668.56,667.3,0.29971527]
[1748962326413,0.781,668.6,667.3,0.29971527]
[1748962326610,0.781,668.6,667.31,1.04909092]
[1748962326815,0.781,668.6,667.3,0.29971527]
[1748962327011,0.781,668.6,667.31,1.04906708]
[1748962327209,0.781,668.6,667.3,0.29971527]
[1748962327411,0.781,668.6,667.31,1.0490594]
[1748962327610,0.781,668.6,667.3,0.29971527]
[1748962334215,3.72069198,668.46,667.3,0.29971527]
[1748962334817,3.72069198,668.53,667.3,0.29971527]
[1748962336917,3.72069198,668.41,667.3,0.29971527]
[1748962337517,3.72069198,668.42,667.3,0.29971527]
[1748962337912,3.72069198,668.52,667.3,0.29971527]
[1748962338918,3.72069198,668.57,667.3,0.29971527]
[1748962339316,0.781,668.6,667.3,0.29971527]
[1748962339515,1.08013251,668.6,667.3,0.29971527]
[1748962342522,3.72069198,668.56,667.3,0.29971527]
[1748962343422,3.72069198,668.57,667.3,0.29971527]
[1748962344822,3.72069198,668.51,667.3,0.29971527]
[1748962345321,3.72069198,668.31,667.3,0.29971527]
[1748962346321,3.72069198,668.27,667.3,0.29971527]
[1748962346823,3.72069198,668.26,667.3,0.29971527]
[1748962347323,3.72069198,668.27,667.3,0.29971527]
[1748962347718,3.72069198,668.22,667.3,0.29971527]
[1748962349024,3.72069198,668.37,667.3,0.29971527]
[1748962349419,3.72069198,668.38,667.3,0.29971527]
[1748962350424,3.72069198,668.39,667.3,0.29971527]
[1748962354230,0.748,668.5,667.3,0.29971527]
[1748962354826,0.29918173,668.49,667.3,0.29971527]
[1748962363937,3.73435337,668.46,667.3,0.29971527]
[1748962364842,3.73435337,668.42,667.3,0.29971527]
[1748962365241,3.73435337,668.43,667.3,0.29971527]
[1748962365941,0.29918173,668.49,667.3,0.29971527]
[1748962365942,3.73435337,668.46,667.3,0.29971527]
[1748962366143,3.73435337,668.45,667.3,0.29971527]
[1748962366642,3.73435337,668.43,667.3,0.29971527]
[1748962367143,3.73435337,668.44,667.3,0.29971527]
[1748962367644,3.73435337,668.45,667.3,0.29971527]
[1748962368244,3.73435337,668.32,667.3,0.29971527]
[1748962368436,3.73435337,668.32,666.94,0.7333254]
[1748962368641,3.73435337,668.18,666.95,0.29987255]
[1748962369039,3.73435337,668.17,666.95,0.29987255]
[1748962370745,3.73435337,668.24,666.95,0.29987255]
[1748962371647,0.29918173,668.49,666.95,0.29987255]
[1748962371648,3.73435337,668.21,666.95,0.29987255]
[1748962372347,3.73435337,668.16,666.95,0.29987255]
[1748962373645,5.22809472,668.43,666.95,0.29987255]
[1748962373646,3.73435337,668.23,666.95,0.29987255]
[1748962374047,3.73435337,668.37,666.95,0.29987255]
[1748962374448,3.73435337,668.39,666.95,0.29987255]
[1748962374949,0.29918173,668.49,666.95,0.29987255]
[1748962376743,3.73435337,668.45,666.95,0.29987255]
[1748962376948,0.29920411,668.44,666.95,0.29987255]
[1748962377352,0.29920411,668.44,666.96,1.78430983]
[1748962377653,0.758,668.43,666.97,0.29986356]
[1748962379051,3.73435337,668.36,666.97,0.29986356]
[1748962380151,0.758,668.43,666.98,1.04435288]
[1748962380351,0.758,668.43,666.99,2.08257776]
[1748962380551,0.758,668.43,667.0,1.34420295]
[1748962380745,0.758,668.43,667.01,1.04435288]
[1748962380950,0.758,668.43,667.02,1.04435288]
[1748962381150,0.758,668.43,667.03,1.04435288]
[1748962381347,0.758,668.43,667.0,0.29985007]
[1748962381348,0.758,668.43,667.04,1.34418497]
[1748962381552,0.758,668.43,667.05,1.34418047]
[1748962381847,0.758,668.43,667.06,2.09378971]
[1748962382051,0.758,668.43,667.07,2.09377401]
[1748962382248,0.758,668.43,667.08,1.05542093]
[1748962382452,0.758,668.43,666.98,0.73839478]
[1748962382453,0.758,668.43,667.09,1.35523055]
[1748962382653,0.758,668.43,667.1,1.35522605]
[1748962382845,0.758,668.43,667.11,1.35522156]
[1748962383052,0.758,668.43,666.98,0.73839478]
[1748962383053,0.758,668.43,667.12,1.35521706]
[1748962383254,0.758,668.43,667.13,1.35521257]
[1748962383452,0.758,668.43,667.14,1.35520808]
[1748962383652,0.758,668.43,667.15,1.35520358]
[1748962383858,0.758,668.43,667.16,1.35519909]
[1748962384055,0.758,668.43,667.17,1.3551946]
[1748962384256,0.758,668.43,667.18,1.3551901]
[1748962384453,0.758,668.43,667.19,1.35518561]
[1748962384653,0.758,668.43,667.2,1.35518112]
[1748962384853,0.758,668.43,667.21,1.35517662]
[1748962385055,0.758,668.43,667.22,0.2997512]
[1748962388060,0.758,668.43,667.23,1.05290277]
[1748962388255,0.758,668.43,667.24,1.79078745]
[1748962388455,0.758,668.43,667.25,1.05290277]
[1748962388654,0.758,668.43,667.26,1.79073843]
[1748962388857,0.758,668.43,667.27,1.05290277]
[1748962389059,0.758,668.43,667.28,1.05290277]
[1748962389261,0.758,668.43,667.29,1.05290277]
[1748962389561,0.758,668.43,667.3,1.06804783]
[1748962389759,0.758,668.43,667.31,1.06804783]
[1748962389960,0.758,668.43,667.32,1.06804783]
[1748962390165,0.758,668.43,667.24,0.73783858]
[1748962390359,0.758,668.43,667.25,1.06817739]
[1748962390562,0.758,668.43,667.26,1.06817739]
[1748962390865,0.758,668.43,667.27,1.06817739]
[1748962391063,0.758,668.43,667.28,1.06817739]
[1748962391264,0.758,668.43,667.29,1.06817739]
[1748962391460,0.758,668.43,667.24,0.73783858]
[1748962391665,0.758,668.43,667.25,1.07027269]
[1748962391864,0.758,668.43,667.26,1.07027269]
[1748962392059,0.758,668.43,667.27,1.37000143]
[1748962392261,0.758,668.43,667.28,1.36999694]
[1748962392459,0.758,668.43,667.29,1.36999245]
[1748962392665,0.758,668.43,667.3,1.36998796]
[1748962392861,0.758,668.43,667.31,1.36998346]
[1748962393066,0.758,668.43,667.32,0.29970628]
[1748962401774,0.758,668.43,667.33,1.06882128]
[1748962401975,0.758,668.43,667.34,1.06882128]
[1748962402179,0.758,668.43,667.35,1.06867653]
[1748962402372,0.758,668.43,667.32,0.29970628]
[1748962402577,0.758,668.43,667.33,1.06863686]
[1748962402778,0.758,668.43,667.34,1.0686418]
[1748962402978,0.758,668.43,667.35,1.06859276]
[1748962403173,0.758,668.43,667.36,1.06859276]
[1748962403377,0.758,668.43,667.32,0.29970628]
[1748962403576,0.758,668.43,667.46,0.46757846]
[1748962403974,0.758,668.43,667.45,0.46757846]
[1748962404279,0.758,668.43,667.46,0.46757846]
[1748962404781,0.758,668.43,667.48,0.46757846]
[1748962405277,0.758,668.43,667.52,0.46757846]
[1748962405477,0.758,668.43,667.53,0.46757846]
[1748962405676,0.758,668.43,667.54,0.46757846]
[1748962405878,0.758,668.43,667.51,0.46757846]
[1748962406074,0.758,668.43,667.49,0.46757846]
[1748962406475,0.758,668.43,667.32,0.29970628]
[1748962406476,0.758,668.43,667.51,0.46757846]
[1748962406782,0.758,668.43,667.52,0.46757846]
[1748962407382,0.758,668.43,667.54,0.46757846]
[1748962407582,0.758,668.43,667.56,0.46757846]
[1748962407884,0.758,668.43,667.57,0.46757846]
[1748962408280,0.758,668.43,667.58,0.46757846]
[1748962408583,0.758,668.43,667.61,0.46757846]
[1748962409084,0.758,668.43,667.24,0.73783858]
[1748962409085,0.758,668.43,667.62,0.46757846]
[1748962409283,0.758,668.43,667.61,0.46757846]
[1748962409481,0.758,668.43,667.65,0.46757846]
[1748962409880,0.758,668.43,667.68,0.46757846]
[1748962410384,0.758,668.43,667.78,0.46757846]
[1748962410586,0.758,668.43,667.79,0.46757846]
[1748962411083,0.758,668.43,667.81,0.46757846]
[1748962411578,0.758,668.43,667.8,0.46757846]
[1748962412385,0.758,668.43,667.81,0.46757846]
[1748962412587,0.758,668.43,667.83,0.46757846]
[1748962413288,0.758,668.43,667.24,0.73783858]
[1748962413289,0.758,668.43,667.85,0.46757846]
[1748962413483,0.758,668.43,667.87,0.46757846]
[1748962414187,0.758,668.43,667.24,0.73783858]
[1748962414188,0.758,668.43,667.97,0.46757846]
[1748962414389,0.758,668.43,668.0,0.46757846]
[1748962414589,3.73435337,668.97,668.04,0.46757846]
[1748962414789,3.73435337,669.04,668.0,0.46757846]
[1748962415186,3.73435337,669.17,668.01,0.46757846]
[1748962415390,3.73435337,669.17,668.02,0.46757846]
[1748962415590,3.73435337,669.17,668.01,0.46757846]
[1748962415890,3.73435337,669.17,668.02,0.46757846]
[1748962416289,0.26058144,669.23,667.89,0.46757846]
[1748962416884,0.881,669.22,667.89,0.46757846]
[1748962417186,0.881,669.22,667.9,0.46757846]
[1748962417384,0.881,669.22,667.91,0.46757846]
[1748962417588,0.881,669.22,667.9,0.46757846]
[1748962417791,0.881,669.22,667.89,0.46757846]
[1748962418092,0.881,669.22,667.92,0.46757846]
[1748962419290,0.881,669.22,668.03,0.46757846]
[1748962419492,0.881,669.22,668.14,0.46757846]
[1748962419995,0.881,669.22,668.15,0.46757846]
[1748962420294,0.881,669.22,667.27,1.46951181]
[1748962420295,0.881,669.22,668.18,0.46757846]
[1748962420494,0.881,669.22,668.19,0.46757846]
[1748962420891,0.881,669.22,668.16,0.46757846]
[1748962421090,0.881,669.22,668.19,0.46757846]
[1748962421490,0.881,669.22,668.2,0.46757846]
[1748962421800,0.881,669.22,668.22,0.46757846]
[1748962422098,0.881,669.22,667.84,0.46757846]
[1748962422291,0.881,669.22,667.34,1.09543695]
[1748962422292,0.881,669.22,667.83,0.46757846]
[1748962423098,0.881,669.22,667.85,0.46757846]
[1748962423699,0.881,669.22,667.82,0.46757846]
[1748962424300,0.881,669.22,667.83,0.46757846]
[1748962424500,0.881,669.22,667.86,0.46757846]
[1748962424699,0.881,669.22,667.87,0.46757846]
[1748962425199,0.881,669.22,667.83,0.46757846]
[1748962425499,0.881,669.22,667.82,0.46757846]
[1748962426298,0.881,669.22,667.84,0.46757846]
[1748962426800,0.881,669.22,667.85,0.46757846]
[1748962427198,0.881,669.22,667.86,0.46757846]
[1748962427395,0.881,669.22,667.85,0.46757846]
[1748962427702,0.881,669.22,668.03,0.46757846]
[1748962427902,0.881,669.22,668.13,0.46757846]
[1748962428197,0.881,669.22,668.15,0.46757846]
[1748962428397,0.881,669.22,668.13,0.46757846]
[1748962428599,0.881,669.22,668.12,0.46757846]
[1748962429005,0.881,669.22,668.22,0.46757846]
[1748962429305,0.881,669.22,668.17,0.46757846]
[1748962429501,0.881,669.22,668.12,0.46757846]
[1748962430505,0.881,669.22,668.08,0.46757846]
[1748962430701,0.881,669.22,668.07,0.46757846]
[1748962431303,0.881,669.22,668.09,0.46757846]
[1748962431504,0.881,669.22,668.04,0.46757846]
[1748962431699,0.881,669.22,668.03,0.46757846]
[1748962431905,0.881,669.22,668.04,0.46757846]
[1748962432102,0.2605512,669.37,668.04,0.46757846]
[1748962432301,0.2605512,669.37,668.2,0.46757846]
[1748962432502,0.2605512,669.37,667.25,0.56485976]
[1748962432503,3.73435337,669.29,668.22,0.46757846]
[1748962433006,3.73435337,669.19,668.22,0.46757846]
[1748962433200,3.73435337,669.19,667.85,0.47071646]
[1748962433201,3.73435337,669.19,668.24,0.46757846]
[1748962433405,3.73435337,669.19,668.18,0.46757846]
[1748962433605,3.73435337,669.19,668.21,0.46757846]
[1748962433805,3.73435337,669.14,668.21,0.46757846]
[1748962434302,3.73435337,669.15,668.0,0.46757846]
[1748962434507,0.664,669.13,667.94,0.46757846]
[1748962435107,0.664,669.13,667.93,0.46757846]
[1748962435304,0.664,669.13,667.95,0.46757846]
[1748962435507,0.664,669.13,667.88,0.46757846]
[1748962436213,0.664,669.13,667.89,0.46757846]
[1748962436413,0.664,669.13,667.71,0.46757846]
[1748962436608,0.664,669.13,667.7,0.46757846]
[1748962437311,0.664,669.13,667.25,1.09701968]
[1748962437312,0.664,669.13,667.71,0.46757846]
[1748962437507,0.664,669.13,667.68,0.46757846]
[1748962437712,0.664,669.13,667.66,0.46757846]
[1748962437913,0.664,669.13,667.68,0.46757846]
[1748962438110,0.664,669.13,667.71,0.46757846]
[1748962438310,0.664,669.13,667.72,0.46757846]
[1748962438510,0.664,669.13,667.67,0.46757846]
[1748962439208,0.664,669.13,667.68,0.46757846]
[1748962439409,0.664,669.13,667.66,0.29955366]
[1748962439710,0.664,669.13,667.73,0.46757846]
[1748962440014,0.664,669.13,667.72,0.46757846]
[1748962440312,0.664,669.13,667.73,0.46757846]
[1748962440707,0.664,669.13,667.74,0.46757846]
[1748962441111,0.664,669.13,667.76,0.46757846]
[1748962441312,0.664,669.13,667.75,0.46757846]
[1748962442210,0.664,669.13,667.76,0.46757846]
[1748962442610,0.664,669.13,667.77,0.46757846]
[1748962443015,0.664,669.13,667.76,0.46757846]
[1748962443215,0.664,669.13,667.77,0.46757846]
[1748962444214,0.664,669.13,667.75,0.46757846]
[1748962444418,0.664,669.13,667.74,0.46757846]
[1748962444922,0.664,669.13,667.72,0.46757846]
[1748962445618,0.664,669.13,667.72,0.7671052]
[1748962445918,0.664,669.13,667.72,0.29952674]
[1748962446217,0.664,669.13,667.72,0.7671052]
[1748962446419,0.664,669.13,667.72,0.29952674]
[1748962448016,3.73435337,668.84,667.72,0.29952674]
[1748962448414,3.73435337,668.85,667.72,0.29952674]
[1748962448921,3.73435337,668.84,667.72,0.29952674]
[1748962449419,3.73435337,668.8,667.72,0.29952674]
[1748962450019,3.73435337,668.78,667.72,0.29952674]
[1748962450817,3.73435337,668.92,667.72,0.29952674]
[1748962452317,4.03334278,668.92,667.72,0.29952674]
[1748962453621,3.73435337,668.91,667.72,0.29952674]
[1748962454023,4.03334278,668.92,667.72,0.29952674]
[1748962454424,0.29898941,668.92,667.72,0.29952674]
[1748962458527,3.73435337,668.82,667.72,0.29952674]
[1748962459527,0.29898941,668.92,667.72,0.29952674]
[1748962470533,0.961,668.91,667.72,0.29952674]
[1748962490949,0.961,668.91,667.73,1.05928101]
[1748962491147,0.961,668.91,667.74,1.35879878]
[1748962491353,0.961,668.91,667.76,0.2995088]
[1748962491655,0.961,668.91,667.77,1.05928101]
[1748962491853,0.961,668.91,667.79,0.29949535]
[1748962492055,0.961,668.91,667.8,1.05928101]
[1748962492255,0.961,668.91,667.82,0.29948189]
[1748962492452,0.961,668.91,667.83,1.05893543]
[1748962492658,0.961,668.91,667.84,1.35840835]
[1748962492853,0.961,668.91,667.86,0.29946395]
[1748962493057,0.961,668.91,667.87,1.05893543]
[1748962493260,0.961,668.91,667.88,1.35839042]
[1748962493459,0.961,668.91,667.89,1.05893543]
[1748962493654,0.961,668.91,667.9,1.35838145]
[1748962493859,0.961,668.91,667.91,1.35837697]
[1748962494060,0.961,668.91,667.92,1.35837248]
[1748962494257,0.961,668.91,667.93,1.358368]
[1748962494453,0.961,668.91,667.94,1.35836352]
[1748962494659,0.961,668.91,667.95,0.2994236]
[1748962499463,0.26055803,669.54,667.95,0.2994236]
[1748962499662,0.29871701,669.53,667.95,0.2994236]
[1748962501656,0.647,669.52,667.95,0.2994236]
[1748962501858,0.29872593,669.51,667.95,0.2994236]
[1748962503860,0.29872593,669.51,667.96,1.05470443]
[1748962504058,0.29872593,669.51,667.97,1.35411907]
[1748962504264,0.29872593,669.51,667.98,1.35411459]
[1748962504465,0.29872593,669.51,667.99,0.29940567]
[1748962506365,0.29872593,669.51,668.0,1.05319453]
[1748962506665,0.29872593,669.51,668.01,1.35259884]
[1748962506868,0.29872593,669.51,668.02,0.29939223]
[1748962508462,0.29872593,669.51,668.13,0.46757846]
[1748962508664,0.29872593,669.51,668.12,0.46757846]
[1748962509266,0.29872593,669.51,668.02,0.29939223]
[1748962509463,0.29872593,669.51,668.02,0.76697069]
[1748962509665,0.29872593,669.51,668.02,0.29939223]
[1748962509865,0.29872593,669.51,668.03,1.05192574]
[1748962510065,0.29872593,669.51,668.04,0.29938327]
[1748962514969,0.29872593,669.51,668.05,1.05050969]
[1748962515168,0.29872593,669.51,668.06,1.05050969]
[1748962515368,0.29872593,669.51,668.07,1.7798973]
[1748962515569,0.29872593,669.51,668.07,2.50926268]
[1748962515769,0.29872593,669.51,668.31,0.46757846]
[1748962516271,0.29872593,669.51,668.32,0.46757846]
[1748962516667,0.29872593,669.51,668.28,0.46757846]
[1748962516866,0.29872593,669.51,668.09,0.46757846]
[1748962517069,0.29872593,669.51,668.1,1.3580343]
[1748962517266,0.29872593,669.51,668.19,0.46757846]
[1748962517470,0.29872593,669.51,668.22,0.46757846]
[1748962517772,0.29872593,669.51,668.39,0.46757846]
[1748962517971,0.29872593,669.51,668.11,0.2993519]
[1748962517972,0.29872593,669.51,668.66,0.46757846]
[1748962518272,0.29872593,669.51,668.45,0.46757846]
[1748962518472,0.29872593,669.51,668.48,0.46757846]
[1748962519168,0.29872593,669.51,668.46,0.46757846]
[1748962519366,0.29872593,669.51,668.49,0.46757846]
[1748962519566,0.29872593,669.51,668.48,0.46757846]
[1748962520273,0.29872593,669.51,668.68,0.46757846]
[1748962520469,0.29872593,669.51,668.11,0.2993519]
[1748962520470,0.29872593,669.51,668.44,0.46757846]
[1748962520668,0.29872593,669.51,668.43,0.46757846]
[1748962520870,0.29872593,669.51,668.4,0.46757846]
[1748962521573,0.29872593,669.51,668.43,0.46757846]
[1748962521771,0.29872593,669.51,668.44,0.46757846]
[1748962521968,0.29872593,669.51,668.42,0.46757846]
[1748962522473,0.812,669.5,668.45,0.46757846]
[1748962522673,0.812,669.5,668.39,0.46757846]
[1748962522869,0.812,669.5,668.11,0.2993519]
[1748962522870,0.812,669.5,668.52,0.46757846]
[1748962523069,0.812,669.5,668.91,0.46757846]
[1748962523273,0.812,669.5,668.97,0.46757846]
[1748962523470,0.812,669.5,669.0,0.46757846]
[1748962523673,0.812,669.5,668.98,0.46757846]
[1748962523874,0.812,669.5,668.97,0.46757846]
[1748962524070,0.812,669.5,668.93,0.46757846]
[1748962524272,0.812,669.5,668.95,0.46757846]
[1748962524470,0.812,669.5,668.57,0.46757846]
[1748962524873,0.812,669.5,668.64,0.46757846]
[1748962525074,0.812,669.5,668.65,0.46757846]
[1748962525270,0.812,669.5,668.64,0.46757846]
[1748962525475,0.812,669.5,668.69,0.46757846]
[1748962525675,0.812,669.5,668.67,0.46757846]
[1748962525975,0.812,669.5,668.69,0.46757846]
[1748962526375,0.812,669.5,668.61,0.46757846]
[1748962526576,0.812,669.5,668.62,0.46757846]
[1748962526970,0.812,669.5,668.11,0.2993519]
[1748962526971,0.812,669.5,668.66,0.46757846]
[1748962527369,0.812,669.5,668.11,0.2993519]
[1748962527971,0.812,669.5,668.22,0.46530255]
[1748962528175,0.812,669.5,668.72,0.46530255]
[1748962528375,0.812,669.5,668.7,0.46530255]
[1748962528578,0.812,669.5,668.68,0.46530255]
[1748962529575,0.812,669.5,668.67,0.46530255]
[1748962531277,0.812,669.5,668.66,0.46530255]
[1748962531470,0.812,669.5,668.24,0.29929366]
[1748962531471,0.812,669.5,668.69,0.46530255]
[1748962532074,0.812,669.5,668.72,0.46530255]
[1748962532271,0.812,669.5,668.74,0.46530255]
[1748962532577,0.812,669.5,668.24,0.76459621]
[1748962532578,0.812,669.5,668.41,0.46530255]
[1748962532778,0.812,669.5,668.4,0.46530255]
[1748962532981,0.812,669.5,668.42,0.29921306]
[1748962533475,0.812,669.5,668.44,0.46530255]
[1748962533678,0.812,669.5,668.07,1.45875299]
[1748962533679,0.812,669.5,668.45,0.29919964]
[1748962534172,0.812,669.5,668.45,0.76450219]
[1748962534572,0.812,669.5,668.47,0.46530255]
[1748962534773,0.812,669.5,668.48,0.29918621]
[1748962535478,0.812,669.5,668.51,0.46530255]
[1748962535777,0.812,669.5,668.07,1.45875299]
[1748962535778,0.812,669.5,668.53,0.46530255]
[1748962535978,0.812,669.5,668.54,0.29915936]
[1748962536373,0.812,669.5,668.55,0.46530255]
[1748962536580,0.812,669.5,668.56,0.29915041]
[1748962537083,0.812,669.5,668.56,0.76445296]
[1748962537379,0.812,669.5,668.59,0.46530255]
[1748962537579,0.812,669.5,668.58,0.46530255]
[1748962538481,0.812,669.5,668.6,0.46530255]
[1748962540483,0.812,669.5,668.59,0.46530255]
[1748962541383,0.812,669.5,668.57,0.46530255]
[1748962541582,0.812,669.5,668.58,0.46530255]
[1748962541782,0.812,669.5,668.83,0.46530255]
[1748962542185,0.812,669.5,668.56,0.29915041]
[1748962542186,0.812,669.5,668.96,0.46530255]
[1748962542385,0.812,669.5,669.12,0.46530255]
[1748962542686,0.812,669.5,668.56,0.29915041]
[1748962542687,0.812,669.5,669.06,0.46530255]
[1748962542878,0.812,669.5,669.03,0.46530255]
[1748962543385,0.812,669.5,669.04,0.46530255]
[1748962543584,0.812,669.5,669.01,0.46530255]
[1748962544487,0.812,669.5,668.63,0.46530255]
[1748962544690,0.812,669.5,668.61,0.46530255]
[1748962544885,0.812,669.5,668.62,0.46530255]
[1748962545085,0.812,669.5,668.61,0.46530255]
[1748962545285,0.812,669.5,668.6,0.46530255]
[1748962545485,0.812,669.5,668.56,0.76445296]
[1748962545789,0.812,669.5,668.6,0.46530255]
[1748962546489,0.812,669.5,668.59,0.46530255]
[1748962546890,0.812,669.5,668.6,0.46530255]
[1748962547390,0.812,669.5,668.62,0.46530255]
[1748962547589,0.812,669.5,668.59,0.46530255]
[1748962548386,0.26032316,670.06,668.73,0.46530255]
[1748962548582,0.29848518,670.05,668.68,0.46530255]
[1748962548987,0.29848518,670.05,668.82,0.46530255]
[1748962549186,0.29848518,670.05,668.56,0.29915041]
[1748962549187,0.29848518,670.05,668.85,0.46530255]
[1748962549587,0.29848518,670.05,668.83,0.46530255]
[1748962550489,0.29848518,670.05,668.78,0.46530255]
[1748962550689,0.873,670.04,668.78,0.46530255]
[1748962550893,0.29849409,670.03,668.77,0.46530255]
[1748962551088,0.29849409,670.03,668.78,0.46530255]
[1748962551289,0.29849409,670.03,668.77,0.46530255]
[1748962551491,0.29849409,670.03,668.8,0.46530255]
[1748962552194,0.29849409,670.03,668.56,0.29915041]
[1748962553594,0.29849409,670.03,668.56,0.76445296]
[1748962554296,0.29849409,670.03,668.57,0.46530255]
[1748962554597,0.29849409,670.03,668.56,0.76445296]
[1748962554788,0.29849409,670.03,668.56,0.29915041]
[1748962554993,0.29849409,670.03,668.58,0.46530255]
[1748962555189,0.29849409,670.03,668.56,0.76445296]
[1748962555390,3.70022545,669.83,668.97,0.46530255]
[1748962555594,3.70022545,669.83,668.94,0.46530255]
[1748962556199,3.70022545,669.83,668.9,0.46530255]
[1748962556393,3.70022545,669.79,668.9,0.46530255]
[1748962556595,3.70022545,669.79,668.8,0.46530255]
[1748962556796,3.70022545,669.79,668.81,0.46530255]
[1748962556995,3.70022545,669.86,668.81,0.46530255]
[1748962557197,3.70022545,669.86,668.82,0.46530255]
[1748962557593,3.70022545,669.86,668.79,0.46530255]
[1748962558198,3.70022545,669.86,668.56,0.29915041]
[1748962558199,3.70022545,669.83,668.78,0.46530255]
[1748962558399,3.70022545,669.83,668.81,0.46530255]
[1748962558701,3.70022545,669.73,668.81,0.46530255]
[1748962558902,3.70022545,669.73,668.93,0.46530255]
[1748962559099,3.70022545,669.62,668.92,0.46530255]
[1748962559305,3.70022545,669.62,668.91,0.46530255]
[1748962559512,3.70022545,669.6,668.87,0.46530255]
[1748962559905,3.70022545,669.6,668.88,0.46530255]
[1748962560304,3.70022545,669.6,668.89,0.46530255]
[1748962560510,3.70022545,669.59,668.87,0.46530255]
[1748962560711,3.70022545,669.59,668.56,0.29915041]
[1748962560712,3.70022545,669.59,668.84,0.46530255]
[1748962560906,3.70022545,669.59,668.8,0.46530255]
[1748962561111,3.70022545,669.7,668.58,0.46530255]
[1748962561509,5.18031563,669.87,668.58,0.46530255]
[1748962561707,3.70022545,669.88,668.56,0.29915041]
[1748962562011,3.70022545,669.9,668.56,0.29915041]
[1748962562212,3.70022545,669.9,668.56,0.76445296]
[1748962562408,3.70022545,669.9,668.56,0.29915041]
[1748962562708,3.70022545,669.86,668.56,0.29915041]
[1748962562907,3.70022545,669.88,668.56,0.29915041]
[1748962563311,3.70022545,669.85,668.56,0.29915041]
[1748962563809,3.70022545,669.91,668.56,0.29915041]
[1748962564009,0.29855202,669.9,668.56,0.29915041]
[1748962564813,3.70022545,669.89,668.56,0.29915041]
[1748962565013,0.29856093,669.88,668.56,0.29915041]
[1748962565213,3.70022545,669.68,668.68,0.46530255]
[1748962565415,3.70022545,669.68,668.65,0.46530255]
[1748962565614,3.70022545,669.67,668.65,0.46530255]
[1748962566208,0.629,669.87,668.63,0.46530255]
[1748962566209,3.70022545,669.64,668.63,0.46530255]